Cogmind - Beta 10.2 @@@ ROGUE MODE // 2021.10.17 @ 17:23:53 Player: youngster Result: Destroyed by G-47 Trooper with Particle Gun Performance ------------- Evolutions (3) 1500 Regions Visited (8) 1600 Robots Destroyed (118) 590 Value Destroyed (4275) 4275 Prototype IDs (5) 100 Alien Tech Used (0) 0 Bonus (1708) 1708 TOTAL SCORE: 9773 Bonus ------- High Alert Combat Kills 808 Entered Garrisons 400 Used RIF Installer 500 Cogmind --------- Core Integrity 0/700 Matter 59/300 Energy 100/100 System Corruption 2% Temperature Cool (9) Movement Core (800) Ox15 Location -7/Garrison Parts ------- > --- POWER (3) -------- (None) > --- PROPULSION (2) --- (None) > --- UTILITY (4) ------ Large Storage Unit High-capacity Storage Unit > --- WEAPON (4) ------- (None) > --- INVENTORY (18) --- Light Nuclear Core Light Treads Improved Heat Sink Large Matter Pod (0) Transmission Jammer Relay Coupler [NC] (23) Relay Coupler [NC] (25) Relay Coupler [NC] (23) Relay Coupler [Swarmer] (44) Relay Coupler [Swarmer] (42) Relay Coupler [Swarmer] (39) Relay Coupler [Grunt] (26) Relay Coupler [Grunt] (27) Relay Coupler [Duelist] (29) Relay Coupler [Sentry] (20) Assault Cannon Improved Grenade Launcher Datajack Peak State ------------ > --- POWER ------------ Heavy Ion Engine Light Nuclear Core Improved Deuterium Engine > --- PROPULSION ------- Light Treads Light Treads > --- UTILITY ---------- Large Storage Unit High-capacity Storage Unit Hacking Suite Relay Coupler [NC] > --- WEAPON ----------- Flak Gun Advanced Assault Cannon Advanced Assault Cannon Advanced Assault Cannon > --- INVENTORY -------- Light Nuclear Core Light Treads Improved Heat Sink Large Matter Pod Transmission Jammer Relay Coupler [NC] Relay Coupler [NC] Relay Coupler [NC] Relay Coupler [Swarmer] Relay Coupler [Swarmer] Relay Coupler [Swarmer] Relay Coupler [Grunt] Relay Coupler [Grunt] Relay Coupler [Duelist] Relay Coupler [Sentry] Assault Cannon Improved Grenade Launcher Datajack [Rating: 38] Favorites ----------- Power Light Nuclear Core Engine Light Ion Engine Power Core Light Nuclear Core Propulsion Light Treads Treads Light Treads Leg Titanium Leg Wheel Armored Wheel Utility Large Storage Unit Device Improved Heat Sink Storage Large Storage Unit Hackware Hacking Suite Weapon Light Assault Rifle Energy Gun Particle Gun Energy Cannon Light EM Pulse Cannon Ballistic Gun Light Assault Rifle Ballistic Cannon Advanced Assault Cannon Launcher Improved Grenade Launcher Special Melee Weapon Datajack Build | -11 -10 -10 -9 -8 -8 -8 -7 -7 ------- Run | Scr Mat Min Mat Mat Gar Mat Fac Gar Slots Evolved 6 | . . . 2 2 . . 2 . Power 2 | . . . . 2 . . . . Propulsion . | . . . . . . . . . Utility 2 | . . . . . . . 2 . Weapon 2 | . . . 2 . . . . . Parts Attached 102 | 6 16 3 1 7 31 30 5 3 Power 22 | 1 2 . . 1 9 7 1 1 Engine 15 | 1 2 . . 1 5 5 . 1 Core 7 | . . . . . 4 2 1 . Reactor . | . . . . . . . . . Propulsion 24 | 2 3 2 1 2 6 8 . . Treads 15 | 2 1 . 1 . 3 8 . . Leg 5 | . . . . 2 3 . . . Wheel 4 | . 2 2 . . . . . . Hover . | . . . . . . . . . Flight . | . . . . . . . . . Utility 11 | 1 2 . . 1 4 1 2 . Device 2 | . . . . . 2 . . . Storage 7 | 1 2 . . 1 2 1 . . Processor . | . . . . . . . . . Hackware 2 | . . . . . . . 2 . Protection . | . . . . . . . . . Artifact . | . . . . . . . . . Weapon 45 | 2 9 1 . 3 12 14 2 2 Energy Gun 15 | 1 4 . . 3 4 3 . . Energy Cannon 3 | . 2 . . . . 1 . . Ballistic Gun 16 | 1 3 . . . 8 3 . 1 Ballistic Cannon 6 | . . 1 . . . 4 1 . Launcher 4 | . . . . . . 3 . 1 Special Weapon . | . . . . . . . . . Impact Weapon . | . . . . . . . . . Slashing Weapon . | . . . . . . . . . Piercing Weapon . | . . . . . . . . . Special Melee Weapon 1 | . . . . . . . 1 . Unidentified Prototypes 1 | . . . . . . 1 . . Parts Lost 52 | . 7 3 . . 24 7 . 11 Power 15 | . 2 . . . 7 3 . 3 Propulsion 9 | . . 2 . . 3 2 . 2 Utility 2 | . . . . . . . . 2 Weapon 26 | . 5 1 . . 14 2 . 4 Highest Loss Streak 11 | . 2 3 . . 9 2 . 11 Average Slot Usage (%) 86 | . 98 93 4 49 77 87 100 95 Engine 13 | . 13 13 . 6 11 16 15 14 Core 4 | . . . . . 6 6 7 6 Treads 9 | . 3 13 4 . 3 18 15 13 Leg 4 | . . . . 15 12 . . . Wheel 6 | . 24 12 . . . . . . Device 1 | . . . . . 6 . . . Storage 17 | . 26 26 . 4 11 18 15 15 Hackware 1 | . . . . . . . 15 14 Energy Gun 9 | . 16 5 . 21 11 5 . . Energy Cannon 1 | . 2 . . . . 3 . . Ballistic Gun 9 | . 9 13 . . 13 7 . 1 Ballistic Cannon 5 | . . 8 . . . 7 28 22 Launcher 1 | . . . . . . 3 1 4 Naked Turns 55 | . . 16 39 . . . . . Heaviest Build 96 | 12 39 41 . 20 47 96 96 96 Greatest Support 43 | 40 40 20 23 34 40 43 40 40 Greatest Overweight (x) 3 | 2 3 3 . . 3 2 2 2 Average Overweight (x) 1 | . 1 2 . . . 1 2 2 Largest Inventory Capacity 18 | 6 16 16 4 8 16 18 18 18 Average Capacity 13 | 5 14 15 4 5 10 16 18 18 Most Carried 18 | 4 16 13 4 7 14 16 15 18 Average Carried 11 | 2 11 11 4 4 9 15 14 16 Final Capacity 18 | 6 16 4 4 8 16 18 18 18 Final Carried 18 | 4 13 4 4 7 14 16 15 18 Class Distribution -------------------- 51% | Mutant 21% | Scavenger-Gunner 8% | Gunner 7% | Scavenger-Mutant 5% | Bothacker-Gunner 5% | Bothacker-Mutant Dominant Class ---------------- Mutant | -10/Materials Mutant | -10/Mines Mutant | -9/Materials Gunner | -8/Materials Scavenger-Gunner | -8/Garrison Mutant | -8/Materials Bothacker-Gunner | -7/Factory Bothacker-Gunner | -7/Garrison Resources | -11 -10 -10 -9 -8 -8 -8 -7 -7 ----------- Run | Scr Mat Min Mat Mat Gar Mat Fac Gar Matter Collected 2106 | 219 373 85 . . 391 762 217 59 Remotely . | . . . . . . . . . Salvage Created 3560 | 78 458 208 30 . 769 1826 67 124 Parts 192 | 3 22 7 3 . 44 104 4 5 Haulers Intercepted 5 | . 2 . . . . 3 . . Recyclers Shooed 4 | . 1 1 1 . . 1 . . Parts Field Recycled . | . . . . . . . . . Retrieved Matter . | . . . . . . . . . Parts Self-Destructed . | . . . . . . . . . Prevented . | . . . . . . . . . Kills | -11 -10 -10 -9 -8 -8 -8 -7 -7 ------- Run | Scr Mat Min Mat Mat Gar Mat Fac Gar Combat Hostiles Destroyed 88 | . 11 3 . . 24 43 2 5 Melee 2 | . . . . . 1 . . 1 Guns 40 | . 10 1 . . 20 9 . . Cannons 17 | . . 2 . . . 12 2 1 AOE 28 | . 1 . . . 2 22 . 3 Classes Destroyed 13 | 2 4 . 1 . 2 4 . . Worker 4 | . . . 1 . . 3 . . Builder 7 | . . . . . . 7 . . Tunneler 1 | 1 . . . . . . . . Hauler 5 | . 2 . . . . 3 . . Recycler 6 | 1 . 2 . . . 3 . . Mechanic 2 | . . . . . . 2 . . Operator 3 | . . . . . . 3 . . Watcher 2 | . 1 . . . . 1 . . Swarmer 24 | . 3 3 . . 12 6 . . Grunt 47 | . 8 . . . 10 24 2 3 Brawler 6 | . . . . . 1 4 . 1 Duelist 4 | . . . . . 1 3 . . Sentry 7 | . . . . . . 6 . 1 Best Kill Streak 25 | 2 3 3 1 . 5 25 2 4 Combat Bots Only 8 | . 3 3 . . 5 8 2 4 Max Kills in Single Turn 3 | 1 1 1 1 . 3 3 1 1 Gunslinging 1 | . . . . . 1 . . . Exploded 2 | . 1 . . . 2 2 . 1 Melee 1 | . . . . . 1 . . 1 Uniques/NPCs Destroyed . | . . . . . . . . . Combat | -11 -10 -10 -9 -8 -8 -8 -7 -7 -------- Run | Scr Mat Min Mat Mat Gar Mat Fac Gar Damage Taken 7104 | . 898 212 152 . 1976 1569 162 2135 Core 1410 | . 90 77 106 . 204 230 . 703 Absorbed by Shields . | . . . . . . . . . Core Remaining (%) 56 | 100 . 33 73 . . 21 . . Volleys Fired 277 | 4 70 15 . . 77 91 8 12 Largest 4 | 2 2 2 . . 4 4 3 4 Hottest 215 | 60 108 55 . . 215 188 144 172 Shots Fired 575 | 8 135 29 . . 173 190 18 22 Gun 418 | 8 124 15 . . 173 95 . 3 Cannon 130 | . 11 14 . . . 72 18 15 Launcher 27 | . . . . . . 23 . 4 Special . | . . . . . . . . . Kinetic 310 | 4 45 28 . . 84 113 18 18 Thermal 181 | . 85 1 . . 63 32 . . Explosive 27 | . . . . . . 23 . 4 Electromagnetic 57 | 4 5 . . . 26 22 . . Robot Hit Streak 19 | 3 16 7 . . 19 13 1 6 Robot Miss Streak 9 | 1 5 9 . . 3 3 4 1 Penetration Max . | . . . . . . . . . Secondary Targets 10 | . 2 . . . 8 . . . Max Gunslinging Chain 1 | . 1 . . . 1 . . . Shots Hit Robots 373 | 5 88 16 . . 120 117 8 19 Core Hits 213 | 2 27 9 6 . 50 102 4 13 Critical Hits 3 | . 1 . . . . 1 . 1 Critical Kills . | . . . . . . . . . Critical Parts Destroyed 3 | . 1 . . . . 1 . 1 Melee Attacks 4 | . . . . . . . 4 . Impact . | . . . . . . . . . Slashing . | . . . . . . . . . Piercing . | . . . . . . . . . Sneak Attacks 4 | . . . . . . . 4 . Combat Hostiles . | . . . . . . . . . Follow-up Attacks . | . . . . . . . . . Damage Inflicted 9600 | 57 1390 179 51 . 1632 5347 112 832 Guns 3524 | 57 802 73 . . 1544 1015 . 33 Cannons 1559 | . 102 92 . . . 983 112 270 Explosions 4340 | . 464 . . . 78 3332 . 466 Melee . | . . . . . . . . . Ramming 177 | . 22 14 51 . 10 17 . 63 Kinetic 2561 | 16 194 165 . . 498 1273 112 303 Thermal 2181 | . 910 . . . 872 399 . . Explosive 4026 | . 228 . . . . 3332 . 466 Electromagnetic 655 | 41 36 . . . 252 326 . . Impact . | . . . . . . . . . Slashing . | . . . . . . . . . Piercing . | . . . . . . . . . Highest Corruption 2 | . 2 2 1 . . . . 2 Average Corruption 1 | . 2 2 1 . . . . 1 Corruption Purged . | . . . . . . . . . Effects 3 | . 2 1 . . . . . . Data Loss (minor) 2 | . 1 1 . . . . . . Targeting Errors 1 | . 1 . . . . . . . Overload Shots . | . . . . . . . . . Overflow Damage 475 | . 194 . . . . 274 . 7 Projectiles 59 | . 4 . . . . 55 . . Explosions 416 | . 190 . . . . 219 . 7 Melee . | . . . . . . . . . Knockbacks 5 | . 1 . . . . 3 1 . Impact 1 | . 1 . . . . . . . Kinetic 4 | . . . . . . 3 1 . Secondary . | . . . . . . . . . Self-Inflicted Damage 316 | . 10 . 32 . 37 204 . 33 Shots 8 | . . . . . 1 7 . . Rammed 30 | . 2 2 11 . 4 2 . 9 Targets Rammed 31 | . 2 2 11 . 5 2 . 9 Kicked . | . . . . . . . . . Crushed 1 | . . . . . 1 . . . Highest Temperature 459 | 20 322 28 . . 352 459 360 203 Average Temperature 110 | 15 81 12 . . 88 141 188 78 Received Heat Transfer 2118 | . 369 . 42 . 486 567 99 555 Effects 25 | . 2 . . . 3 19 1 . Shutdowns 7 | . . . . . . 7 . . Energy Bleed 2 | . . . . . . 2 . . Interference 12 | . 2 . . . 3 7 . . Matter Decay 1 | . . . . . . 1 . . Damage (minor) 3 | . . . . . . 2 1 . Siege Activations . | . . . . . . . . . Robots Corrupted . | . . . . . . . . . Combat Hostiles . | . . . . . . . . . Parts Fried 2 | . . . . . 2 . . . Impact Corruptions . | . . . . . . . . . Robots Melted 1 | . . . . . 1 . . . Combat Hostiles 1 | . . . . . 1 . . . Parts Melted 3 | . 2 . . . 1 . . . Heat Transferred 4597 | . 1635 . . . 2074 888 . . Parts Sabotaged . | . . . . . . . . . Parts Stolen . | . . . . . . . . . Parts Stripped . | . . . . . . . . . Power Chain Reactions 1 | . . . . . 1 . . . Missiles Intercepted . | . . . . . . . . . Alert | -11 -10 -10 -9 -8 -8 -8 -7 -7 ------- Run | Scr Mat Min Mat Mat Gar Mat Fac Gar Peak Influence 1262 | 10 252 147 122 24 622 1262 566 530 Initial 566 | . 6 97 57 9 15 283 566 329 Average 394 | 2 101 123 70 10 407 730 464 466 Maximum Alert Level 4 | . 1 . . . 2 4 2 2 Low Security (%) 34 | 100 81 100 100 100 14 . . . Level 1 18 | . 18 . . . 29 19 . 6 Level 2 34 | . . . . . 55 35 100 93 Level 3 3 | . . . . . . 14 . . Level 4 8 | . . . . . . 30 . . Level 5 . | . . . . . . . . . High Security . | . . . . . . . . . Max Security . | . . . . . . . . . Squads Dispatched 12 | . 3 . . . . 8 1 . Investigation 4 | . 3 . . . . 1 . . Extermination . | . . . . . . . . . Reinforcement 4 | . . . . . . 3 1 . Assault 2 | . . . . . . 2 . . Garrison 2 | . . . . . . 2 . . Intercept . | . . . . . . . . . Construction Impeded 1 | . . . . . . 1 . . Haulers Reinforced . | . . . . . . . . . Stealth | -11 -10 -10 -9 -8 -8 -8 -7 -7 --------- Run | Scr Mat Min Mat Mat Gar Mat Fac Gar Distress Signals 3 | . 1 . . . . 2 . . Communications Jammed . | . . . . . . . . . Distress Signals . | . . . . . . . . . Times Spotted 142 | . 20 6 5 1 29 65 3 13 Peak Tracking Total 10 | . 4 3 5 1 8 9 2 10 Tactical Retreats 9 | . 1 . 1 . 2 4 . 1 Traps | -11 -10 -10 -9 -8 -8 -8 -7 -7 ------- Run | Scr Mat Min Mat Mat Gar Mat Fac Gar Traps Triggered 13 | . 2 . . . 9 1 . 1 Indirectly . | . . . . . . . . . Trap Hack Attempts . | . . . . . . . . . Triggered . | . . . . . . . . . Disarmed . | . . . . . . . . . Reprogrammed . | . . . . . . . . . Reused . | . . . . . . . . . Traps Extracted . | . . . . . . . . . Installed . | . . . . . . . . . Triggered . | . . . . . . . . . Machines | -11 -10 -10 -9 -8 -8 -8 -7 -7 ---------- Run | Scr Mat Min Mat Mat Gar Mat Fac Gar Machines Disabled 16 | . 6 . . . 3 6 . 1 Max in Single Turn 3 | . 3 . . . 1 1 . 1 Garrison Access 1 | . . . . . . 1 . . Garrison Relay 4 | . . . . . 3 . . 1 Machines Sabotaged . | . . . . . . . . . Garrisons Compromised . | . . . . . . . . . Overloaded Fab Kills . | . . . . . . . . . Fab Network Shutdowns . | . . . . . . . . . Hacking | -11 -10 -10 -9 -8 -8 -8 -7 -7 --------- Run | Scr Mat Min Mat Mat Gar Mat Fac Gar Machines Accessed 19 | . 8 1 1 2 . 6 1 . Terminals 12 | . 6 1 1 1 . 3 . . Fabricators . | . . . . . . . . . Repair Stations 1 | . . . . . . 1 . . Recycling Units 2 | . 2 . . . . . . . Scanalyzers 1 | . . . . . . 1 . . Garrison Access 3 | . . . . 1 . 1 1 . Total Hacks 47 | . 21 1 4 3 . 17 1 . Successful 29 | . 13 1 3 2 . 9 1 . Failed 18 | . 8 . 1 1 . 8 . . Catastrophic 2 | . 1 . . . . 1 . . Database Lockouts . | . . . . . . . . . Manual 26 | . 16 . . 2 . 8 . . Terminals 37 | . 19 1 4 2 . 11 . . Fabricators . | . . . . . . . . . Repair Stations 2 | . . . . . . 2 . . Recycling Units 2 | . 2 . . . . . . . Scanalyzers 2 | . . . . . . 2 . . Garrison Access 4 | . . . . 1 . 2 1 . Terminal Hacks 8 | . 3 1 3 . . 1 . . Prototype ID Bank 2 | . 2 . . . . . . . Alert Level 1 | . . 1 . . . . . . Unreport Threat 3 | . . . 2 . . 1 . . Hauler Manifests 1 | . 1 . . . . . . . Zone Layout 1 | . . . 1 . . . . . Fabricator Hacks . | . . . . . . . . . Repair Station Hacks 1 | . . . . . . 1 . . Scan Component 1 | . . . . . . 1 . . Recycling Unit Hacks . | . . . . . . . . . Scanalyzer 2 | . . . . . . 2 . . Insert Component 1 | . . . . . . 1 . . Analyze 1 | . . . . . . 1 . . Garrison Access Hacks 4 | . . . . 1 . 2 1 . Unlock Access 2 | . . . . 1 . . 1 . Seal Access 1 | . . . . . . 1 . . Coupler Status 1 | . . . . . . 1 . . Unauthorized Hacks 14 | . 10 . . 1 . 3 . . Terminals 12 | . 8 . . 1 . 3 . . Track 2 | . 2 . . . . . . . Botnet 6 | . 3 . . 1 . 2 . . Detonate 1 | . 1 . . . . . . . Disrupt 1 | . 1 . . . . . . . Operators 2 | . 1 . . . . 1 . . Fabricators . | . . . . . . . . . Repair Stations . | . . . . . . . . . Recycling Units 2 | . 2 . . . . . . . Tunnel 2 | . 2 . . . . . . . Scanalyzers . | . . . . . . . . . Garrison Access . | . . . . . . . . . Data Cores Recovered 1 | . . . . . . 1 . . Used . | . . . . . . . . . Hacking Detections 14 | . 6 1 . 1 . 5 1 . Full Trace Events 1 | . . . . . . 1 . . Feedback Events . | . . . . . . . . . Feedback Blocked . | . . . . . . . . . Robot Schematics Acquired . | . . . . . . . . . Robots Built . | . . . . . . . . . Matter . | . . . . . . . . . Time . | . . . . . . . . . Total Robot Build Rating . | . . . . . . . . . Part Schematics Acquired 1 | . . . . . . 1 . . Parts Built . | . . . . . . . . . Matter . | . . . . . . . . . Time . | . . . . . . . . . Total Part Build Rating . | . . . . . . . . . Parts Repaired . | . . . . . . . . . Time . | . . . . . . . . . Parts Recycled . | . . . . . . . . . Recycled Matter . | . . . . . . . . . Retrieved Matter . | . . . . . . . . . Retrieved Components . | . . . . . . . . . Parts Scanalyzed 1 | . . . . . . 1 . . Part Schematics Acquired 1 | . . . . . . 1 . . Parts Damaged . | . . . . . . . . . Bothacking | -11 -10 -10 -9 -8 -8 -8 -7 -7 ------------ Run | Scr Mat Min Mat Mat Gar Mat Fac Gar Used RIF Installer 1 | . . . . . 1 . . . Robots Hacked 1 | . . . . . . . 1 . Non-combat 1 | . . . . . . . 1 . Combat . | . . . . . . . . . Robot Hacks Applied 3 | . . . . . . . 3 . purge_threat 1 | . . . . . . . 1 . find_terminals 1 | . . . . . . . 1 . locate_traps 1 | . . . . . . . 1 . Relay Couplers Released 17 | . . . . . 12 . . 5 Machine Destruction 17 | . . . . . 12 . . 5 Attached 1 | . . . . . . . 1 . Robots Rewired . | . . . . . . . . . Allies Hacked . | . . . . . . . . . Hacks Repelled . | . . . . . . . . . Allies | -11 -10 -10 -9 -8 -8 -8 -7 -7 -------- Run | Scr Mat Min Mat Mat Gar Mat Fac Gar Total Allies . | . . . . . . . . . Largest Group . | . . . . . . . . . Highest-Rated Group . | . . . . . . . . . Highest-Rated Ally . | . . . . . . . . . Total Orders . | . . . . . . . . . Ally Attacks . | . . . . . . . . . Total Damage . | . . . . . . . . . Kills . | . . . . . . . . . Allies Corrupted . | . . . . . . . . . Allies Melted . | . . . . . . . . . Intel | -11 -10 -10 -9 -8 -8 -8 -7 -7 ------- Run | Scr Mat Min Mat Mat Gar Mat Fac Gar Robot Analysis Total . | . . . . . . . . . Derelict Logs Recovered . | . . . . . . . . . Drone Launches . | . . . . . . . . . Drone Recoveries . | . . . . . . . . . Exploration | -11 -10 -10 -9 -8 -8 -8 -7 -7 ------------- Run | Scr Mat Min Mat Mat Gar Mat Fac Gar Turns Passed 5041 | 94 1075 361 72 123 1446 1391 133 346 Spaces Moved 2806 | 49 779 272 113 93 753 575 45 127 Core 177 | 10 . 33 112 22 . . . . Treads 961 | 39 27 8 1 . 139 575 45 127 Legs 685 | . . . . 71 614 . . . Wheels 983 | . 752 231 . . . . . . Hover . | . . . . . . . . . Flight . | . . . . . . . . . Fastest Speed 50 | 50 90 50 50 50 125 180 200 200 Average Speed 137 | 144 105 113 50 111 148 180 200 200 Slowest Speed 210 | 160 180 200 160 130 210 200 200 200 Overloaded Moves . | . . . . . . . . . Propulsion Burnouts . | . . . . . . . . . Robots Hopped . | . . . . . . . . . Cave-ins Triggered . | . . . . . . . . . Exploration Rate (%) 40 | 5 98 55 18 13 78 69 1 26 Regions Visited 8 Branch Regions 1 Pre-discovered Areas 2 | . 2 . . . . . . . Known Exits Taken 2 | . . . . 1 . . 1 . Unknown Exits Taken 5 | 1 1 1 1 . . 1 . . Scrap Searched . | . . . . . . . . . Spaces Dug 17 | . . . . . . 16 1 . Terrain Destroyed 273 | . 59 . 1 . 2 175 4 32 Melee . | . . . . . . . . . Projectile 22 | . . . . . . 18 4 . AOE 250 | . 59 . . . 2 157 . 32 Terrain Rammed 2 | . . . 1 . . . . 1 Walls Destroyed 1 | . . . 1 . . . . . Machines Disabled 1 | . . . . . . . . 1 Actions | -11 -10 -10 -9 -8 -8 -8 -7 -7 --------- Run | Scr Mat Min Mat Mat Gar Mat Fac Gar Total 3476 | 62 903 294 126 111 946 791 68 175 Wait 131 | . 16 . 1 4 21 71 4 14 Move 2800 | 48 778 271 112 93 752 574 45 127 Hop . | . . . . . . . . . Pick Up 46 | 4 13 3 . 5 10 6 1 4 Fast Attach 58 | 6 7 . 1 6 23 14 . 1 Attach 17 | . 6 3 . 1 2 3 2 . Detach 5 | . 4 . . . . 1 . . Swap 27 | . 3 . . . 6 13 3 2 Drop 31 | . 4 . . 2 5 16 1 3 Fire 277 | 4 70 15 . . 77 91 8 12 Melee 4 | . . . . . . . 4 . Ram 17 | . 2 . 12 . . . . 3 Kick . | . . . . . . . . . Crush 16 | . . 2 . . 5 2 . 7 Escape Stasis 47 | . . . . . 45 . . 2 Rewire . | . . . . . . . . . Trap . | . . . . . . . . . Miscellaneous . | . . . . . . . . . Route ------- -11/Scrapyard -10/Materials (discovered 4 exits: *Mat x3 / *Min) -10/Mines -9/Materials -8/Materials -8/Garrison (discovered 3 exits: *Mat x3) -8/Materials (discovered 3 exits: *Fac x2 / [*Sto]) -7/Factory -7/Garrison History --------- Turn | Location | Event 14 | -11/Scrapyard | Discovered new exit (range 16) 95 | -11/Scrapyard | Entered Materials 134 | -10/Materials | Discovered new exit (range 8) 305 | -10/Materials | Build established: Mutant 695 | -10/Materials | Discovered new exit (range 3) 854 | -10/Materials | Discovered new exit (range 16) 1042 | -10/Materials | Discovered new exit (range 15) 1170 | -10/Materials | Entered Mines 1196 | -10/Mines | Met a Derelict bent on vengeance 1308 | -10/Mines | Core integrity fell below 50% 1336 | -10/Mines | Lost 3 parts (2n1w) 1358 | -10/Mines | Discovered new exit (range 7) 1515 | -10/Mines | Released all parts (7) 1531 | -10/Mines | Entered Materials 1531 | -9/Materials | Evolved 2 slots: Weapon x2 1597 | -9/Materials | Discovered new exit (range 10) 1603 | -9/Materials | Entered another Materials area 1603 | -8/Materials | Evolved 2 slots: Power x2 1726 | -8/Materials | Identified exit to Garrison 1726 | -8/Materials | Entered Garrison 1752 | -8/Garrison | Triggered checkpoint 1831 | -8/Garrison | Garrison Relay disabled 1882 | -8/Garrison | Triggered checkpoint 1992 | -8/Garrison | Lost 9 parts (3p1n5w) 2098 | -8/Garrison | Discovered new exit (range 14) 2189 | -8/Garrison | Triggered checkpoint 2274 | -8/Garrison | Discovered new exit (range 8) 2276 | -8/Garrison | Build established: Scavenger-Gunner 2320 | -8/Garrison | Triggered checkpoint 2441 | -8/Garrison | Discovered new exit (range 12) 2472 | -8/Garrison | Installed Relay Interface Framework 2542 | -8/Garrison | Triggered checkpoint 2575 | -8/Garrison | Garrison Relay disabled 2585 | -8/Garrison | Lost 4 parts (1p3w) 2708 | -8/Garrison | Triggered checkpoint 2758 | -8/Garrison | Garrison Relay disabled 2888 | -8/Garrison | Triggered checkpoint 2948 | -8/Garrison | Lost 6 parts (2n4w) 3172 | -8/Garrison | Entered Materials 3210 | -8/Materials | Build established: Mutant 3305 | -8/Materials | Discovered new exit (range 15) 3505 | -8/Materials | Core integrity fell below 50% 3876 | -8/Materials | Discovered new exit (range 3) 3972 | -8/Materials | First assault squad dispatched 4110 | -8/Materials | Destroyed 8 combat bots 4268 | -8/Materials | Garrison activated, responded to threat 4523 | -8/Materials | Discovered new exit (range 6) 4563 | -8/Materials | Entered Factory 4563 | -7/Factory | Evolved 2 slots: Utility x2 4696 | -7/Factory | Identified exit to Garrison 4696 | -7/Factory | Entered Garrison 4780 | -7/Garrison | Triggered checkpoint 4871 | -7/Garrison | Garrison Relay disabled 5001 | -7/Garrison | Triggered checkpoint 5034 | -7/Garrison | Core integrity fell below 50% 5039 | -7/Garrison | Core integrity fell below 20% 5042 | -7/Garrison | Destroyed by G-47 Trooper with Particle Gun Last Messages --------------- 04942_ Dropped Hvy. Ion Engine. 05001_ Beams of light sweep through the air. An alarm sounds. Garrison Door activated. 05013_ C-30 ARC bursts open, deploying its payload. 05013_ S-27 Virus unfolds itself. 05015_ Slammed into Y-54 Guardian. 05016_ Lgt. Nuclear Core destroyed. 05017_ Lgt. Treads destroyed. 05020_ Slammed into Y-54 Guardian. 05022_ Lgt. Treads destroyed. 05023_ Slammed into Y-54 Guardian. 05025_ Hvy. Ion Engine destroyed. 05028_ Imp. Deuterium Engine destroyed. 05028_ Flak Gun destroyed. 05028_ System corrupted by crushing effect (+1). 05029_ Adv. Assault Cannon destroyed. 05031_ Relay Coupler [NC] destroyed. 05031_ System corrupted by crushing effect (+1). 05031_ Hacking Suite destroyed. 05038_ Slammed into Y-54 Guardian. Map ----- +----------------------------------------------------+ | ?????????????????????????????????????????????????? | | ?????????????????????????????????????????????????? | | ???????????????######????????????????????????????? | | ???????????????# #????????????????????????????? | | ???????????##### ###??????????????????????????? | | ######???### #??????????????????????????? | | # #???#"#!######## #??????????????????????????? | | # #???# !*#???# ## #??????????????????????????? | | # #???#"! #???# ## #??????????????????????????? | | ### #???#" #???# ## #??????????????????????????? | | ??# #???#"# #???# ## #??????????????????????????? | | ??# #???######### ## #??????????????????????????? | | ??# #???### ## #??????????????????????????? | | ??# #???# # # # ## #??????????????????????????? | | ??# ##### #### ## #######????????????????????? | | ??# #????????????????????? | | ??# #????????????????????? | | ??########## # = = ####### #????????????????????? | | ?????????## # [ ##?????# #????????????????????? | | ?????????# ## #??????# #????????????????????? | | ?????????### ###^ #??????# #????????????????????? | | ???????????# #?# #??????# #????????????????????? | | ???????????# ?# #??????# #????##??????????????? | | ???????????###?# #??????# #?? "%#??????????????? | | ???????????????# #?????## ## ## ##?????????? | | ???????????????# #######@Y #?????????? | | ???????????????# Ysbs #?????????? | | ???????????????# s #?????????? | | ???????????????########## ## ## #?????????? | | ????????????????????????# gg#? #??? #?????????? | | ???????????????????????? ? ?????????????? | | ???????????????????????? ???????????? | | ??????????????????????? ??????????? | | ??????????????????????? ??????????? | | ???????????????????????## ## ## ???????????? | | ????????????????????????# #? #?? ???????????? | | ????????????????????????# ?? ?????????????? | | ????????????????????????# ?? ?????????????? | | ????????????????????????? ?? ????????????? | | ?????????????????????????# ##???"#??????????????? | | ?????????????????????????? #????????????????????? | | ?????????????????????????? #????????????????????? | | ?????????????????????????? ?????????????????????? | | ?????????????????????????????????????????????????? | | ?????????????????????????????????????????????????? | | ?????????????????????????????????????????????????? | | ?????????????????????????????????????????????????? | | ?????????????????????????????????????????????????? | | ?????????????????????????????????????????????????? | | ?????????????????????????????????????????????????? | +----------------------------------------------------+ Best States ------------- Heat Dissipation 45 Energy Generation 32 Energy Capacity 530 Matter Stores 300 Matter Capacity 300 Sight Range 16 Terrain Scan Density 10 Evasion (%) 50 Recoil Reduction 2 Offensive Hacking 10 Relay Coupler Types 29 Relay Coupler Value 1 Item Schematics ----------------- Hacking Suite | -8/Materials | Scanalyzed Robot Schematics ------------------ None Fabricated ------------ Nothing Alien Tech Used ----------------- None Achievements -------------- None Challenges ------------ None Game ------ Seed SurgeBlastClaws Manual? 0 Play Time 00:49:18 Cumulative 107.3 hours Start 2021.10.16 @ 17:54:35 End 2021.10.17 @ 17:23:53 Sessions 5 Manual Loads 0 Difficulty Rogue Special Mode None Game No. 72 Rogue 72 Adventurer 0 Explorer 0 Win Type - Total 1 Types 0/0/0/1/0/0/0/0/0 Lore% 65 Gallery% 73 Achievement% 49 Wizard Run 0 Options --------- ASCII 0 Keyboard 1 Movement Vi Keybinds 0 Fullscreen 2 Font 18/Cog Map View 76x50 Tactical HUD 1 Map Filters NONE Filters NONE Steam 0 RUN: 66667432-6019-431a-889b-32caa1b8b806